[Event "EYCC Girls-U16 2019"]
[Site "Bratislava"]
[Date "2019.08.09"]
[Round "8.12"]
[White "Zarebska, Lena"]
[Black "Gombocz, Zsofia"]
[Result "1-0"]
[ECO "C88"]
[WhiteElo "1773"]
[BlackElo "1981"]
[Annotator "NA"]
[PlyCount "91"]
[EventDate "2019.08.02"]
[EventType "swiss"]
[EventCountry "SVK"]
[SourceTitle "playchess.com"]
[Source "ChessBase"]
[SourceQuality "1"]
[TimeControl "40/5400+30:1800+30"]

1. e4 {[%emt 0:00:00]} e5 {[%emt 0:00:00]} 2. Nf3 {[%emt 0:00:00]} Nc6 {[%emt 0:00:00]} 3. Bb5 {[%emt 0:00:00]} a6 {[%emt 0:00:00]} 4. Ba4 {[%emt 0:00:09]} Nf6 {[%emt 0:00:09]} 5. O-O {[%emt 0:00:15]} Be7 {[%emt 0:00:14]} 6. Re1 {[%emt 0:00:25]} b5 {[%emt 0:00:13]} 7. Bb3 {[%emt 0:00:05]} O-O {[%emt 0:00:19]} 8. d4 {[%emt 0:01:39]} d6 {[%emt 0:00:33]} 9. c3 {[%emt 0:00:39]} Bb7 {[%emt 0:04:36]} 10. Nbd2 {[%emt 0:01:07]} h6 {[%emt 0:00:40]} 11. a4 {[%emt 0:02:22]} Re8 {[%emt 0:02:49]} 12. Nf1 {[%emt 0:02:34]} Bf8 {[%emt 0:02:10]} 13. Ng3 {[%emt 0:02:45]} Na5 {[%emt 0:03:31]} 14. Bc2 {[%emt 0:00:51]} exd4 {[%emt 0:05:49]} 15. cxd4 {[%emt 0:00:32]} c5 {[%emt 0:01:08]} 16. d5 {[%emt 0:04:42]} g6 {[%emt 0:03:36]} 17. h4 {[%emt 0:13:41]} h5 {[%emt 0:11:28]} 18. Bg5 {[%emt 0:01:25]} Bg7 {[%emt 0:04:50]} 19. Qb1 {[%emt 0:08:43]} Qd7 {[%emt 0:11:17]} 20. b4 {[%emt 0:04:21]} Nc4 {[%emt 0:11:21]} 21. bxc5 {[%emt 0:00:51]} dxc5 {[%emt 0:00:08]} 22. axb5 {[%emt 0:00:45]} axb5 {[%emt 0:02:26]} 23. Rxa8 {[%emt 0:00:07]} Bxa8 {[%emt 0:02:39]} 24. Bd3 {[%emt 0:05:38]} Ng4 {[%emt 0:07:03]} 25. Rc1 {[%emt 0:04:25]} Na3 {[%emt 0:06:11]} 26. Qa2 {[%emt 0:02:59]} Qa7 {[%emt 0:00:31]} 27. d6 {[%emt 0:06:50]} c4 {[%emt 0:06:16]} 28. Bxc4 {[%emt 0:07:16]} bxc4 {[%emt 0:00:16]} 29. Rxc4 {[%emt 0:00:13]} Qa6 {[%emt 0:10:54]} 30. Rc7 {[%emt 0:00:22]} Rf8 {[%emt 0:00:26]} 31. Be7 {[%emt 0:00:51]} Rb8 {[%emt 0:00:58]} 32. Nf1 {[%emt 0:03:01]} Qb6 {[%emt 0:01:01]} 33. Ng5 {[%emt 0:01:34]} Bd5 {[%emt 0:01:28]} 34. exd5 {[%emt 0:02:03]} Nxf2 {[%emt 0:00:27]} 35. Rc6 {[%emt 0:12:39]} Qa7 {[%emt 0:00:18]} 36. d7 {[%emt 0:01:04]} Ng4+ {[%emt 0:01:32]} 37. Kh1 {[%emt 0:01:25]} Qxd7 {[%emt 0:00:36]} 38. Bxa3 {[%emt 0:02:00]} Qf5 {[%emt 0:00:19]} 39. Nf3 {[%emt 0:01:38]} Qd3 {[%emt 0:00:37]} 40. Rc1 {[%emt 0:00:00]} Bd4 {[%emt 0:00:00]} 41. Nxd4 {[%emt 0:09:31]} Qxd4 {[%emt 0:00:42]} 42. Bc5 {[%emt 0:02:37]} Qf6 {[%emt 0:03:02]} 43. Rb1 {[%emt 0:05:22]} Rc8 {[%emt 0:02:17]} 44. Qa3 {[%emt 0:04:17]} Qf5 {[%emt 0:02:01]} 45. Rc1 {[%emt 0:03:05]} Qxd5 {[%emt 0:02:54]} 46. Ne3 {[%emt 0:01:09]} 1-0

[Event "EYCC Girls-U16 2019"]
[Site "Bratislava"]
[Date "2019.08.09"]
[Round "8.13"]
[White "Kuzich, Aryna"]
[Black "Vanduyfhuys, Daria"]
[Result "0-1"]
[ECO "B32"]
[WhiteElo "1940"]
[BlackElo "2114"]
[Annotator "NA"]
[PlyCount "78"]
[EventDate "2019.08.02"]
[EventType "swiss"]
[EventCountry "SVK"]
[SourceTitle "playchess.com"]
[Source "ChessBase"]
[SourceQuality "1"]
[TimeControl "40/5400+30:1800+30"]

1. e4 {[%emt 0:00:00]} c5 {[%emt 0:00:00]} 2. Nf3 {[%emt 0:00:00]} Nc6 {[%emt 0:00:00]} 3. d4 {[%emt 0:00:00]} cxd4 {[%emt 0:00:00]} 4. c3 {[%emt 0:00:00]} dxc3 {[%emt 0:00:01]} 5. Nxc3 {[%emt 0:00:06]} e6 {[%emt 0:00:11]} 6. Bc4 {[%emt 0:01:02]} a6 {[%emt 0:00:24]} 7. a4 {[%emt 0:01:02]} Nge7 {[%emt 0:00:22]} 8. Bf4 {[%emt 0:11:44]} Ng6 {[%emt 0:01:38]} 9. Bg3 {[%emt 0:00:34]} Be7 {[%emt 0:00:57]} 10. O-O {[%emt 0:01:49]} O-O {[%emt 0:00:58]} 11. Qe2 {[%emt 0:01:32]} f5 {[%emt 0:16:18]} 12. exf5 {[%emt 0:06:55]} Rxf5 {[%emt 0:00:08]} 13. Bd3 {[%emt 0:04:26]} Nf4 {[%emt 0:01:32]} 14. Bxf4 {[%emt 0:00:54]} Rxf4 {[%emt 0:00:04]} 15. Ne5 {[%emt 0:18:32]} Nxe5 {[%emt 0:04:09]} 16. Qxe5 {[%emt 0:00:07]} Rf7 {[%emt 0:00:13]} 17. Rae1 {[%emt 0:22:18]} d5 {[%emt 0:02:37]} 18. Re3 {[%emt 0:14:00]} Bf6 {[%emt 0:04:46]} 19. Qh5 {[%emt 0:02:02]} g6 {[%emt 0:00:58]} 20. Rg3 {[%emt 0:00:23]} Bg7 {[%emt 0:07:55]} 21. Qe2 {[%emt 0:00:11]} Bd7 {[%emt 0:02:30]} 22. Bc2 {[%emt 0:01:15]} Qb6 {[%emt 0:03:57]} 23. Kh1 {[%emt 0:01:03]} Raf8 {[%emt 0:00:33]} 24. f3 {[%emt 0:00:44]} Rf4 {[%emt 0:12:46]} 25. Rb1 {[%emt 0:04:02]} Rb4 {[%emt 0:00:53]} 26. Nd1 {[%emt 0:03:25]} Bxa4 {[%emt 0:01:40]} 27. Bxa4 {[%emt 0:01:23]} Rxa4 {[%emt 0:00:05]} 28. Rc1 {[%emt 0:00:53]} Rh4 {[%emt 0:03:14]} 29. Nf2 {[%emt 0:01:52]} Qxb2 {[%emt 0:04:17]} 30. Qxe6+ {[%emt 0:00:26]} Kh8 {[%emt 0:00:07]} 31. Nd3 {[%emt 0:01:29]} Qxc1+ {[%emt 0:08:55]} 32. Nxc1 {[%emt 0:00:07]} Re4 {[%emt 0:00:03]} 33. Rxg6 {[%emt 0:00:49]} Rxe6 {[%emt 0:10:04]} 34. Rxe6 {[%emt 0:00:02]} a5 {[%emt 0:02:41]} 35. Rb6 {[%emt 0:00:59]} Re8 {[%emt 0:03:20]} 36. Nd3 {[%emt 0:00:25]} Re3 {[%emt 0:00:16]} 37. Rb3 {[%emt 0:00:44]} a4 {[%emt 0:00:19]} 38. Rxb7 {[%emt 0:00:22]} Bc3 {[%emt 0:02:20]} 39. Rb8+ {[%emt 0:00:21]} Kg7 {[%emt 0:00:15]} 0-1

[Event "EYCC Girls-U16 2019"]
[Site "Bratislava"]
[Date "2019.08.09"]
[Round "8.14"]
[White "Ciolacu, Alessia-Mihaela"]
[Black "Warnaar, Alisha"]
[Result "1-0"]
[ECO "E73"]
[WhiteElo "2199"]
[BlackElo "1886"]
[Annotator "NA"]
[PlyCount "95"]
[EventDate "2019.08.02"]
[EventType "swiss"]
[EventCountry "SVK"]
[SourceTitle "playchess.com"]
[Source "ChessBase"]
[SourceQuality "1"]
[TimeControl "40/5400+30:1800+30"]

1. d4 {[%emt 0:00:00]} Nf6 {[%emt 0:00:00]} 2. c4 {[%emt 0:00:00]} g6 {[%emt 0:00:00]} 3. Nc3 {[%emt 0:00:00]} Bg7 {[%emt 0:00:00]} 4. e4 {[%emt 0:00:03]} d6 {[%emt 0:00:00]} 5. Be2 {[%emt 0:00:16]} O-O {[%emt 0:00:13]} 6. Be3 {[%emt 0:00:23]} Nc6 {[%emt 0:02:04]} 7. d5 {[%emt 0:00:17]} Ne5 {[%emt 0:01:08]} 8. f4 {[%emt 0:00:35]} Neg4 {[%emt 0:02:09]} 9. Bd2 {[%emt 0:00:20]} Nh6 {[%emt 0:00:35]} 10. h3 {[%emt 0:05:49]} Nd7 {[%emt 0:10:46]} 11. g4 f5 12. g5 {[%emt 0:19:24]} Nf7 {[%emt 0:11:13]} 13. exf5 {[%emt 0:05:28]} gxf5 {[%emt 0:01:12]} 14. Qc2 {[%emt 0:07:31]} Nc5 {[%emt 0:01:23]} 15. Nf3 {[%emt 0:02:36]} e5 {[%emt 0:00:50]} 16. dxe6 {[%emt 0:07:15]} Bxe6 17. h4 {[%emt 0:04:08]} Qe7 {[%emt 0:04:54]} 18. O-O-O {[%emt 0:03:10]} c6 {[%emt 0:06:33]} 19. h5 {[%emt 0:03:19]} h6 {[%emt 0:09:07]} 20. Nh4 Qd7 21. Be3 {[%emt 0:02:41]} b6 {[%emt 0:12:35]} 22. Rhg1 {[%emt 0:03:25]} Rae8 {[%emt 0:02:09]} 23. Ng6 {[%emt 0:01:38]} Bxc4 {[%emt 0:03:59]} 24. Nxf8 {[%emt 0:06:42]} Kxf8 {[%emt 0:00:11]} 25. Bxc5 {[%emt 0:04:39]} Bxe2 {[%emt 0:02:31]} 26. Bxd6+ {[%emt 0:00:31]} Nxd6 {[%emt 0:00:24]} 27. Nxe2 {[%emt 0:00:27]} Qe6 {[%emt 0:02:32]} 28. gxh6 {[%emt 0:09:18]} Qxh6 {[%emt 0:04:45]} 29. Rg6 {[%emt 0:03:31]} Qxh5 {[%emt 0:00:12]} 30. Rgxd6 {[%emt 0:00:06]} Rxe2 {[%emt 0:02:05]} 31. Rd8+ {[%emt 0:00:48]} Re8 {[%emt 0:02:23]} 32. Qxc6 {[%emt 0:01:16]} Qe2 {[%emt 0:01:33]} 33. Qd6+ {[%emt 0:01:18]} Kf7 {[%emt 0:01:02]} 34. Qd7+ {[%emt 0:00:57]} Re7 {[%emt 0:00:32]} 35. Qxf5+ {[%emt 0:01:12]} Bf6 {[%emt 0:00:08]} 36. Qh7+ {[%emt 0:01:18]} Bg7 {[%emt 0:00:11]} 37. Qg8+ {[%emt 0:00:34]} Kf6 {[%emt 0:02:20]} 38. R8d6+ {[%emt 0:03:56]} Kf5 {[%emt 0:03:55]} 39. Qh7+ {[%emt 0:00:07]} Kxf4 {[%emt 0:01:08]} 40. Qh4+ {[%emt 0:00:00]} Kf5 {[%emt 0:00:00]} 41. Qh3+ {[%emt 0:01:57]} Ke4 {[%emt 0:03:20]} 42. Qh1+ {[%emt 0:01:40]} Kf4 {[%emt 0:04:13]} 43. Rf1+ {[%emt 0:00:25]} Kg5 {[%emt 0:03:17]} 44. Qg1+ {[%emt 0:00:17]} Kh4 {[%emt 0:03:41]} 45. Rf4+ {[%emt 0:00:16]} Kh3 {[%emt 0:00:43]} 46. Qh1+ {[%emt 0:00:09]} Kg3 {[%emt 0:00:05]} 47. Qh4+ {[%emt 0:00:03]} Kg2 {[%emt 0:00:08]} 48. Rg6+ {[%emt 0:00:04]} 1-0

[Event "EYCC Girls-U16 2019"]
[Site "Bratislava"]
[Date "2019.08.09"]
[Round "8.15"]
[White "Guillo Longares, Cecilia"]
[Black "Duran, Esma Doga"]
[Result "1-0"]
[ECO "E10"]
[WhiteElo "1916"]
[BlackElo "2096"]
[Annotator "NA"]
[PlyCount "83"]
[EventDate "2019.08.02"]
[EventType "swiss"]
[EventCountry "SVK"]
[SourceTitle "playchess.com"]
[Source "ChessBase"]
[SourceQuality "1"]
[TimeControl "40/5400+30:1800+30"]

1. d4 {[%emt 0:00:00]} Nf6 {[%emt 0:00:00]} 2. c4 {[%emt 0:00:00]} e6 {[%emt 0:00:00]} 3. Nf3 {[%emt 0:00:00]} c5 {[%emt 0:00:00]} 4. d5 {[%emt 0:00:17]} b5 {[%emt 0:00:02]} 5. Bg5 {[%emt 0:17:14]} bxc4 {[%emt 0:11:16]} 6. e4 {[%emt 0:01:44]} Qb6 {[%emt 0:03:18]} 7. Bxf6 {[%emt 0:00:56]} gxf6 {[%emt 0:00:01]} 8. Qc2 {[%emt 0:00:31]} Bg7 {[%emt 0:09:33]} 9. Nfd2 {[%emt 0:05:40]} d6 {[%emt 0:14:59]} 10. Nxc4 {[%emt 0:02:13]} Qc7 {[%emt 0:00:01]} 11. Nc3 {[%emt 0:01:47]} a6 {[%emt 0:01:01]} 12. dxe6 {[%emt 0:06:43]} fxe6 {[%emt 0:00:38]} 13. Rd1 {[%emt 0:00:14]} O-O {[%emt 0:04:49]} 14. Nxd6 {[%emt 0:03:13]} Nc6 {[%emt 0:01:16]} 15. Nxc8 {[%emt 0:00:51]} Nd4 {[%emt 0:01:22]} 16. Qc1 {[%emt 0:01:51]} Rfxc8 {[%emt 0:01:39]} 17. Bc4 {[%emt 0:00:53]} Kh8 {[%emt 0:06:08]} 18. O-O {[%emt 0:07:49]} Rg8 {[%emt 0:00:12]} 19. Kh1 {[%emt 0:02:34]} Qe5 {[%emt 0:03:16]} 20. f4 {[%emt 0:04:53]} Qh5 {[%emt 0:01:02]} 21. Rd3 {[%emt 0:00:36]} f5 {[%emt 0:07:01]} 22. e5 {[%emt 0:02:54]} Bh6 {[%emt 0:07:01]} 23. Rh3 {[%emt 0:01:52]} Qg4 {[%emt 0:01:04]} 24. Rg3 {[%emt 0:01:05]} Qh5 {[%emt 0:01:34]} 25. Rh3 {[%emt 0:03:49]} Qg4 {[%emt 0:00:03]} 26. Qd2 {[%emt 0:06:11]} Rg6 {[%emt 0:06:41]} 27. Rg3 {[%emt 0:03:54]} Qh4 {[%emt 0:00:10]} 28. Rxg6 {[%emt 0:01:32]} hxg6 {[%emt 0:00:01]} 29. g3 {[%emt 0:02:05]} Qe7 {[%emt 0:00:13]} 30. Qg2 {[%emt 0:03:39]} Qa7 {[%emt 0:04:49]} 31. Ne2 {[%emt 0:02:07]} Rd8 {[%emt 0:11:58]} 32. Rd1 {[%emt 0:06:43]} Qb6 {[%emt 0:00:20]} 33. b3 {[%emt 0:02:44]} g5 {[%emt 0:02:47]} 34. Nxd4 {[%emt 0:01:19]} cxd4 {[%emt 0:00:15]} 35. Qf3 {[%emt 0:06:09]} gxf4 {[%emt 0:00:56]} 36. gxf4 {[%emt 0:01:02]} Rg8 {[%emt 0:00:01]} 37. Rd3 {[%emt 0:00:35]} Rg4 {[%emt 0:01:57]} 38. Qh3 {[%emt 0:00:43]} Qc6+ {[%emt 0:00:17]} 39. Qf3 {[%emt 0:00:28]} Qc5 {[%emt 0:00:45]} 40. Bxe6 {[%emt 0:00:00]} Bxf4 {[%emt 0:00:00]} 41. Qa8+ {[%emt 0:03:03]} Kg7 {[%emt 0:01:16]} 42. Qg8+ {[%emt 0:00:13]} 1-0

[Event "EYCC Girls-U16 2019"]
[Site "Bratislava"]
[Date "2019.08.09"]
[Round "8.16"]
[White "Afanasieva, Alexandra"]
[Black "Adamczyk, Zuzanna"]
[Result "0-1"]
[ECO "B47"]
[WhiteElo "2085"]
[BlackElo "1900"]
[Annotator "NA"]
[PlyCount "92"]
[EventDate "2019.08.02"]
[EventType "swiss"]
[EventCountry "SVK"]
[SourceTitle "playchess.com"]
[Source "ChessBase"]
[SourceQuality "1"]
[TimeControl "40/5400+30:1800+30"]

1. e4 {[%emt 0:00:00]} c5 {[%emt 0:00:00]} 2. Nf3 {[%emt 0:00:00]} e6 {[%emt 0:00:00]} 3. d4 {[%emt 0:00:00]} cxd4 {[%emt 0:00:00]} 4. Nxd4 {[%emt 0:00:00]} Nc6 {[%emt 0:00:04]} 5. Nc3 {[%emt 0:00:00]} Qc7 {[%emt 0:00:39]} 6. g3 {[%emt 0:00:02]} a6 {[%emt 0:00:34]} 7. Bg2 {[%emt 0:00:05]} Nf6 {[%emt 0:00:24]} 8. O-O {[%emt 0:00:24]} Nxd4 {[%emt 0:00:44]} 9. Qxd4 {[%emt 0:00:08]} Bc5 {[%emt 0:00:19]} 10. Bf4 {[%emt 0:00:40]} d6 {[%emt 0:00:59]} 11. Qd3 {[%emt 0:00:05]} h6 {[%emt 0:00:46]} 12. Rad1 {[%emt 0:01:08]} e5 {[%emt 0:03:14]} 13. Be3 {[%emt 0:00:06]} Be6 {[%emt 0:02:24]} 14. Bxc5 {[%emt 0:00:28]} dxc5 {[%emt 0:00:07]} 15. Nd5 {[%emt 0:00:42]} Bxd5 {[%emt 0:00:55]} 16. exd5 {[%emt 0:00:02]} Qd6 {[%emt 0:00:10]} 17. f4 {[%emt 0:00:45]} O-O {[%emt 0:06:32]} 18. c4 {[%emt 0:05:42]} Nd7 {[%emt 0:05:51]} 19. Kh1 {[%emt 0:09:39]} f5 {[%emt 0:23:19]} 20. fxe5 {[%emt 0:08:46]} Nxe5 {[%emt 0:00:31]} 21. Qc3 g6 {[%emt 0:05:56]} 22. Rde1 {[%emt 0:07:12]} Rfe8 {[%emt 0:01:54]} 23. b3 {[%emt 0:13:33]} Re7 {[%emt 0:18:10]} 24. Re3 {[%emt 0:12:01]} Rae8 {[%emt 0:03:39]} 25. Rfe1 {[%emt 0:00:40]} b6 {[%emt 0:04:04]} 26. h3 {[%emt 0:05:46]} h5 {[%emt 0:03:58]} 27. R1e2 {[%emt 0:02:30]} a5 {[%emt 0:07:40]} 28. a3 {[%emt 0:00:50]} Kf7 {[%emt 0:01:25]} 29. Rb2 {[%emt 0:01:28]} Rc7 {[%emt 0:04:02]} 30. Re1 {[%emt 0:03:07]} Kg8 {[%emt 0:00:59]} 31. Ree2 {[%emt 0:06:17]} Ree7 {[%emt 0:01:29]} 32. Re3 {[%emt 0:03:00]} Rc8 {[%emt 0:00:17]} 33. Bf1 {[%emt 0:01:54]} Rce8 {[%emt 0:01:10]} 34. b4 {[%emt 0:03:15]} axb4 {[%emt 0:00:16]} 35. axb4 {[%emt 0:00:01]} Nf7 {[%emt 0:02:03]} 36. Rxe7 {[%emt 0:00:27]} Rxe7 {[%emt 0:00:25]} 37. bxc5 {[%emt 0:01:22]} bxc5 {[%emt 0:01:06]} 38. Ra2 {[%emt 0:02:59]} Re8 {[%emt 0:00:44]} 39. Bg2 {[%emt 0:03:38]} Qe7 {[%emt 0:00:46]} 40. Kh2 {[%emt 0:00:00]} Qd6 {[%emt 0:00:00]} 41. Ra5 {[%emt 0:14:02]} h4 {[%emt 0:06:21]} 42. Bf1 {[%emt 0:07:13]} f4 {[%emt 0:12:18]} 43. g4 {[%emt 0:04:43]} f3+ {[%emt 0:04:51]} 44. Kh1 {[%emt 0:00:01]} Qg3 {[%emt 0:01:02]} 45. Qf6 {[%emt 0:00:59]} f2 {[%emt 0:01:56]} 46. Qxg6+ {[%emt 0:00:24]} Kf8 {[%emt 0:00:14]} 0-1

[Event "EYCC Girls-U16 2019"]
[Site "Bratislava"]
[Date "2019.08.09"]
[Round "8.17"]
[White "Hercog, Nusa"]
[Black "Rzali, Sabina"]
[Result "1/2-1/2"]
[ECO "D26"]
[WhiteElo "2053"]
[BlackElo "1691"]
[Annotator "NA"]
[PlyCount "57"]
[EventDate "2019.08.02"]
[EventType "swiss"]
[EventCountry "SVK"]
[SourceTitle "playchess.com"]
[Source "ChessBase"]
[SourceQuality "1"]
[TimeControl "40/5400+30:1800+30"]

1. d4 {[%emt 0:00:00]} d5 {[%emt 0:00:00]} 2. c4 {[%emt 0:00:00]} dxc4 {[%emt 0:00:00]} 3. Nf3 {[%emt 0:00:00]} Nf6 {[%emt 0:00:00]} 4. e3 {[%emt 0:00:00]} e6 {[%emt 0:00:00]} 5. Bxc4 {[%emt 0:00:00]} a6 {[%emt 0:00:10]} 6. O-O {[%emt 0:00:28]} c5 {[%emt 0:00:28]} 7. dxc5 {[%emt 0:01:28]} Bxc5 {[%emt 0:03:29]} 8. Qxd8+ {[%emt 0:02:34]} Kxd8 {[%emt 0:00:00]} 9. Be2 {[%emt 0:02:35]} Nc6 {[%emt 0:04:04]} 10. a3 {[%emt 0:00:46]} Ke7 {[%emt 0:01:51]} 11. b4 {[%emt 0:01:59]} Bd6 {[%emt 0:00:46]} 12. Bb2 {[%emt 0:02:17]} b5 {[%emt 0:02:47]} 13. Nbd2 {[%emt 0:02:07]} Bb7 {[%emt 0:01:32]} 14. Nb3 {[%emt 0:00:30]} Rhd8 {[%emt 0:04:51]} 15. Rac1 {[%emt 0:04:44]} Rac8 {[%emt 0:04:20]} 16. Rfd1 {[%emt 0:08:52]} h6 {[%emt 0:08:59]} 17. Ne1 {[%emt 0:11:54]} Nb8 18. Nd3 {[%emt 0:02:04]} Rxc1 {[%emt 0:29:29]} 19. Rxc1 {[%emt 0:01:07]} Bd5 {[%emt 0:04:23]} 20. Ndc5 {[%emt 0:06:56]} Rc8 {[%emt 0:06:13]} 21. f3 {[%emt 0:08:34]} e5 {[%emt 0:03:35]} 22. Kf2 {[%emt 0:06:07]} Nfd7 {[%emt 0:04:21]} 23. e4 {[%emt 0:07:46]} Ba8 {[%emt 0:04:11]} 24. Nxd7 {[%emt 0:04:02]} Rxc1 {[%emt 0:04:00]} 25. Bxc1 {[%emt 0:00:33]} Nxd7 {[%emt 0:00:26]} 26. Be3 {[%emt 0:00:23]} Kd8 {[%emt 0:01:26]} 27. g3 {[%emt 0:02:01]} Kc7 {[%emt 0:02:16]} 28. Bd3 {[%emt 0:01:03]} Bb7 {[%emt 0:01:11]} 29. Na5 {[%emt 0:05:54]} 1/2-1/2

[Event "EYCC Girls-U16 2019"]
[Site "Bratislava"]
[Date "2019.08.09"]
[Round "8.18"]
[White "Pipia, Ekaterine"]
[Black "Ozbek, Busra"]
[Result "1/2-1/2"]
[ECO "D80"]
[WhiteElo "1945"]
[BlackElo "1866"]
[Annotator "NA"]
[PlyCount "51"]
[EventDate "2019.08.02"]
[EventType "swiss"]
[EventCountry "SVK"]
[SourceTitle "playchess.com"]
[Source "ChessBase"]
[SourceQuality "1"]
[TimeControl "40/5400+30:1800+30"]

1. d4 {[%emt 0:00:00]} Nf6 {[%emt 0:00:00]} 2. c4 {[%emt 0:00:00]} g6 {[%emt 0:00:00]} 3. Nc3 {[%emt 0:00:00]} d5 {[%emt 0:00:12]} 4. Bg5 {[%emt 0:00:00]} Ne4 {[%emt 0:00:06]} 5. Bh4 {[%emt 0:00:00]} Nxc3 {[%emt 0:00:05]} 6. bxc3 {[%emt 0:00:00]} dxc4 {[%emt 0:00:15]} 7. e3 {[%emt 0:00:04]} Be6 {[%emt 0:00:14]} 8. Be2 {[%emt 0:01:18]} Nd7 {[%emt 0:00:14]} 9. Nf3 {[%emt 0:00:20]} Bg7 {[%emt 0:01:00]} 10. Ng5 {[%emt 0:03:52]} Bd5 {[%emt 0:02:24]} 11. e4 {[%emt 0:00:12]} h6 {[%emt 0:01:02]} 12. exd5 {[%emt 0:00:35]} hxg5 {[%emt 0:00:05]} 13. Bxg5 {[%emt 0:00:37]} Nb6 {[%emt 0:00:32]} 14. Bf3 {[%emt 0:03:14]} Nxd5 {[%emt 0:10:52]} 15. Qa4+ {[%emt 0:01:50]} c6 {[%emt 0:00:13]} 16. Qxc4 {[%emt 0:04:09]} Qd6 {[%emt 0:23:56]} 17. Bxd5 {[%emt 0:12:56]} Qxd5 {[%emt 0:02:31]} 18. Qxd5 {[%emt 0:00:07]} cxd5 {[%emt 0:00:02]} 19. Rb1 {[%emt 0:00:32]} b6 {[%emt 0:00:17]} 20. Kd2 {[%emt 0:03:07]} Kd7 {[%emt 0:01:49]} 21. Rb5 {[%emt 0:01:21]} e6 {[%emt 0:01:38]} 22. Bf4 {[%emt 0:03:38]} Bf6 {[%emt 0:10:28]} 23. a4 {[%emt 0:02:03]} g5 {[%emt 0:05:12]} 24. Bg3 {[%emt 0:00:34]} Rhc8 {[%emt 0:00:15]} 25. a5 {[%emt 0:02:47]} Bd8 {[%emt 0:02:47]} 26. axb6 {[%emt 0:03:16]} 1/2-1/2

[Event "EYCC Girls-U16 2019"]
[Site "Bratislava"]
[Date "2019.08.09"]
[Round "8.19"]
[White "Garau, Francesca"]
[Black "Levitan, Ronit"]
[Result "1/2-1/2"]
[ECO "C80"]
[WhiteElo "1835"]
[BlackElo "2022"]
[Annotator "NA"]
[PlyCount "43"]
[EventDate "2019.08.02"]
[EventType "swiss"]
[EventCountry "SVK"]
[SourceTitle "playchess.com"]
[Source "ChessBase"]
[SourceQuality "1"]
[TimeControl "40/5400+30:1800+30"]

1. e4 {[%emt 0:00:00]} e5 {[%emt 0:00:00]} 2. Nf3 {[%emt 0:00:00]} Nc6 {[%emt 0:00:00]} 3. Bb5 {[%emt 0:00:00]} a6 {[%emt 0:00:05]} 4. Ba4 {[%emt 0:00:06]} Nf6 {[%emt 0:00:20]} 5. O-O {[%emt 0:00:20]} Nxe4 {[%emt 0:00:17]} 6. d4 {[%emt 0:00:19]} b5 {[%emt 0:00:21]} 7. Bb3 {[%emt 0:00:36]} d5 {[%emt 0:00:12]} 8. dxe5 {[%emt 0:00:14]} Be6 {[%emt 0:00:05]} 9. Nbd2 {[%emt 0:00:16]} Bc5 {[%emt 0:01:12]} 10. Nxe4 {[%emt 0:04:03]} dxe4 {[%emt 0:00:34]} 11. Ng5 {[%emt 0:02:19]} Qxd1 {[%emt 0:08:32]} 12. Rxd1 {[%emt 0:02:31]} Bxb3 {[%emt 0:04:39]} 13. axb3 {[%emt 0:08:02]} O-O {[%emt 0:02:03]} 14. Nxe4 {[%emt 0:05:38]} Bd4 {[%emt 0:10:10]} 15. c3 {[%emt 0:08:43]} Bxe5 {[%emt 0:05:16]} 16. f4 {[%emt 0:02:21]} f5 {[%emt 0:05:48]} 17. Nc5 {[%emt 0:04:38]} Bd6 {[%emt 0:01:52]} 18. Nb7 {[%emt 0:04:33]} Rf6 {[%emt 0:35:15]} 19. Nxd6 {[%emt 0:04:07]} Rxd6 {[%emt 0:00:13]} 20. Rxd6 {[%emt 0:01:39]} cxd6 {[%emt 0:00:07]} 21. Be3 {[%emt 0:03:14]} Kf7 {[%emt 0:02:46]} 22. Kf2 {[%emt 0:08:27]} 1/2-1/2

[Event "EYCC Girls-U16 2019"]
[Site "Bratislava"]
[Date "2019.08.09"]
[Round "8.20"]
[White "Koksa, Jelena"]
[Black "Kvendseth, Thyra"]
[Result "0-1"]
[ECO "C44"]
[WhiteElo "1781"]
[BlackElo "1977"]
[Annotator "NA"]
[PlyCount "108"]
[EventDate "2019.08.02"]
[EventType "swiss"]
[EventCountry "SVK"]
[SourceTitle "playchess.com"]
[Source "ChessBase"]
[SourceQuality "1"]
[TimeControl "40/5400+30:1800+30"]

1. e4 {[%emt 0:00:00]} e5 {[%emt 0:00:00]} 2. Nf3 {[%emt 0:00:00]} Nc6 {[%emt 0:00:00]} 3. d4 {[%emt 0:00:00]} exd4 {[%emt 0:00:00]} 4. Nxd4 {[%emt 0:00:00]} Bb4+ {[%emt 0:00:00]} 5. c3 {[%emt 0:00:11]} Bc5 {[%emt 0:00:00]} 6. Nxc6 {[%emt 0:00:23]} bxc6 {[%emt 0:00:43]} 7. Bd3 {[%emt 0:00:13]} Nf6 {[%emt 0:08:16]} 8. e5 {[%emt 0:01:02]} Qe7 {[%emt 0:02:05]} 9. O-O {[%emt 0:02:00]} Nd5 {[%emt 0:01:31]} 10. a3 {[%emt 0:03:26]} a5 {[%emt 0:01:16]} 11. c4 {[%emt 0:07:51]} Nb6 {[%emt 0:01:09]} 12. Nc3 {[%emt 0:00:25]} O-O {[%emt 0:07:48]} 13. Bf4 {[%emt 0:01:09]} d5 {[%emt 0:09:31]} 14. exd6 {[%emt 0:12:32]} cxd6 {[%emt 0:01:49]} 15. Ne4 {[%emt 0:02:51]} d5 {[%emt 0:08:41]} 16. cxd5 {[%emt 0:08:17]} Nxd5 {[%emt 0:02:36]} 17. Bd2 {[%emt 0:08:55]} Bd4 {[%emt 0:05:16]} 18. Qc2 {[%emt 0:05:16]} c5 {[%emt 0:08:28]} 19. Rae1 {[%emt 0:07:21]} Qc7 {[%emt 0:13:40]} 20. Nc3 {[%emt 0:05:34]} Nf6 {[%emt 0:01:22]} 21. Nb5 {[%emt 0:04:13]} Qb6 {[%emt 0:02:22]} 22. Be3 {[%emt 0:05:15]} Be6 {[%emt 0:04:41]} 23. Bxd4 {[%emt 0:03:09]} cxd4 {[%emt 0:00:06]} 24. Qc7 {[%emt 0:00:22]} Rab8 {[%emt 0:02:37]} 25. Qxb6 {[%emt 0:02:24]} Rxb6 {[%emt 0:00:01]} 26. Nxd4 {[%emt 0:07:27]} Ba2 {[%emt 0:01:25]} 27. Bb5 {[%emt 0:06:44]} Rd8 {[%emt 0:04:21]} 28. Nc6 {[%emt 0:00:46]} Rd6 {[%emt 0:01:09]} 29. Rd1 {[%emt 0:00:21]} Nd5 {[%emt 0:00:39]} 30. Rfe1 {[%emt 0:01:29]} g6 {[%emt 0:00:19]} 31. a4 {[%emt 0:01:41]} Rdxc6 {[%emt 0:01:57]} 32. Bxc6 {[%emt 0:00:14]} Rxc6 {[%emt 0:00:01]} 33. Rc1 {[%emt 0:02:30]} Rb6 {[%emt 0:01:03]} 34. Rc5 {[%emt 0:01:08]} Rxb2 {[%emt 0:00:20]} 35. Rxa5 {[%emt 0:00:06]} Nf4 {[%emt 0:01:21]} 36. Rb5 {[%emt 0:01:58]} Rc2 {[%emt 0:01:06]} 37. Rb8+ {[%emt 0:00:21]} Kg7 {[%emt 0:00:04]} 38. Rd8 {[%emt 0:00:22]} Bb3 {[%emt 0:02:57]} 39. a5 {[%emt 0:00:53]} Ra2 {[%emt 0:00:08]} 40. g3 {[%emt 0:00:00]} Ne6 {[%emt 0:00:00]} 41. Rd3 {[%emt 0:06:35]} Bc4 {[%emt 0:01:14]} 42. Rdd1 {[%emt 0:05:14]} Ng5 {[%emt 0:10:17]} 43. Kg2 {[%emt 0:03:14]} Be6 {[%emt 0:09:42]} 44. Re3 {[%emt 0:03:41]} Bh3+ {[%emt 0:05:32]} 45. Kg1 {[%emt 0:00:07]} Bg4 {[%emt 0:00:48]} 46. Rf1 {[%emt 0:02:21]} Bh3 {[%emt 0:07:37]} 47. Rd1 {[%emt 0:01:08]} Rxa5 {[%emt 0:00:11]} 48. f4 {[%emt 0:00:29]} Bg4 {[%emt 0:01:39]} 49. Rf1 {[%emt 0:06:36]} Nh3+ {[%emt 0:00:27]} 50. Kh1 {[%emt 0:00:19]} Ra2 {[%emt 0:00:36]} 51. Rc1 {[%emt 0:00:51]} Rf2 {[%emt 0:03:23]} 52. Rce1 {[%emt 0:00:43]} Bd7 {[%emt 0:01:04]} 53. Rc1 {[%emt 0:00:14]} Rd2 {[%emt 0:00:28]} 54. Rf3 {[%emt 0:01:31]} Be6 {[%emt 0:00:52]} 0-1